{"text_format":"3","workbook":"xlsx","n_sheets":2,"sheets":["Controlador do Projeto","Configuração"],"not_rendered":{"defined_names":6},"read":"whole","date_system":"1900"}

{"sheet":"Controlador do Projeto","index":0,"n_rows":13,"n_cols":15,"rows_kept":13}
[null,"Controlador de projetos"]
[null,null,"Percentagem Superior/Inferior a Sinalizar: ",{"v":0.25,"d":"25%"}]
[]
[null,"Projeto","Categoria","Atribuído A","Início\nEstimado","Conclusão \nEstimada","Trabalho Estimado (em horas)","Duração Estimada (em dias)","Início \nReal","Conclusão\nReal","Ícone de sinalização do Trabalho Real (em horas) Superior/Inferior ao estabelecido","Trabalho Real (em horas)","Ícone de sinalização da Duração Real (em dias) Superior/Inferior à estabelecida","Duração Real (em dias)","Notas"]
[null,"Projeto 1","Categoria 1","Funcionário 1",{"$f":"TODAY()-65","v":"2020-02-02"},{"$f":"TODAY()-5","v":"2020-04-02"},210,{"$f":"IF(COUNTA('Controlador do Projeto'!$E5,'Controlador do Projeto'!$F5)<>2,\"\",DAYS360('Controlador do Projeto'!$E5,'Controlador do Projeto'!$F5,FALSE))","v":60},{"$f":"TODAY()-65","v":"2020-02-02"},{"$f":"TODAY()","v":"2020-04-07"},{"$f":"IFERROR(IF(ControladorDoProjeto[[#This Row],[Trabalho Real (em horas)]]=0,\"\",IF(ABS((ControladorDoProjeto[[#This Row],[Trabalho Real (em horas)]]-ControladorDoProjeto[[#This Row],[Trabalho Estimado (em horas)]])/ControladorDoProjeto[[#This Row],[Trabalho Estimado (em horas)]])>PercentagemSinalizada,1,0)),\"\")","v":1},300,{"$f":"IFERROR(IF(ControladorDoProjeto[[#This Row],[Duração Real (em dias)]]=0,\"\",IF(ABS((ControladorDoProjeto[[#This Row],[Duração Real (em dias)]]-ControladorDoProjeto[[#This Row],[Duração Estimada (em dias)]])/ControladorDoProjeto[[#This Row],[Duração Estimada (em dias)]])>PercentagemSinalizada,1,0)),\"\")","v":0},{"$f":"IF(COUNTA('Controlador do Projeto'!$I5,'Controlador do Projeto'!$J5)<>2,\"\",DAYS360('Controlador do Projeto'!$I5,'Controlador do Projeto'!$J5,FALSE))","v":65}]
[null,"Projeto 2","Categoria 2","Funcionário 4",{"$f":"TODAY()-41","v":"2020-02-26"},{"$f":"TODAY()-10","v":"2020-03-28"},400,{"$f":"IF(COUNTA('Controlador do Projeto'!$E6,'Controlador do Projeto'!$F6)<>2,\"\",DAYS360('Controlador do Projeto'!$E6,'Controlador do Projeto'!$F6,FALSE))","v":32},{"$f":"TODAY()-41","v":"2020-02-26"},{"$f":"TODAY()-7","v":"2020-03-31"},{"$f":"IFERROR(IF(ControladorDoProjeto[[#This Row],[Trabalho Real (em horas)]]=0,\"\",IF(ABS((ControladorDoProjeto[[#This Row],[Trabalho Real (em horas)]]-ControladorDoProjeto[[#This Row],[Trabalho Estimado (em horas)]])/ControladorDoProjeto[[#This Row],[Trabalho Estimado (em horas)]])>PercentagemSinalizada,1,0)),\"\")","v":0},390,{"$f":"IFERROR(IF(ControladorDoProjeto[[#This Row],[Duração Real (em dias)]]=0,\"\",IF(ABS((ControladorDoProjeto[[#This Row],[Duração Real (em dias)]]-ControladorDoProjeto[[#This Row],[Duração Estimada (em dias)]])/ControladorDoProjeto[[#This Row],[Duração Estimada (em dias)]])>PercentagemSinalizada,1,0)),\"\")","v":0},{"$f":"IF(COUNTA('Controlador do Projeto'!$I6,'Controlador do Projeto'!$J6)<>2,\"\",DAYS360('Controlador do Projeto'!$I6,'Controlador do Projeto'!$J6,FALSE))","v":35}]
[null,"Projeto 3","Categoria 1","Funcionário 2",{"$f":"TODAY()-100","v":"2019-12-29"},{"$f":"TODAY()-40","v":"2020-02-27"},500,{"$f":"IF(COUNTA('Controlador do Projeto'!$E7,'Controlador do Projeto'!$F7)<>2,\"\",DAYS360('Controlador do Projeto'!$E7,'Controlador do Projeto'!$F7,FALSE))","v":58},{"$f":"TODAY()-100","v":"2019-12-29"},{"$f":"TODAY()-27","v":"2020-03-11"},{"$f":"IFERROR(IF(ControladorDoProjeto[[#This Row],[Trabalho Real (em horas)]]=0,\"\",IF(ABS((ControladorDoProjeto[[#This Row],[Trabalho Real (em horas)]]-ControladorDoProjeto[[#This Row],[Trabalho Estimado (em horas)]])/ControladorDoProjeto[[#This Row],[Trabalho Estimado (em horas)]])>PercentagemSinalizada,1,0)),\"\")","v":0},500,{"$f":"IFERROR(IF(ControladorDoProjeto[[#This Row],[Duração Real (em dias)]]=0,\"\",IF(ABS((ControladorDoProjeto[[#This Row],[Duração Real (em dias)]]-ControladorDoProjeto[[#This Row],[Duração Estimada (em dias)]])/ControladorDoProjeto[[#This Row],[Duração Estimada (em dias)]])>PercentagemSinalizada,1,0)),\"\")","v":0},{"$f":"IF(COUNTA('Controlador do Projeto'!$I7,'Controlador do Projeto'!$J7)<>2,\"\",DAYS360('Controlador do Projeto'!$I7,'Controlador do Projeto'!$J7,FALSE))","v":72}]
[null,"Projeto 4","Categoria 2","Funcionário 3",{"$f":"TODAY()-90","v":"2020-01-08"},{"$f":"TODAY()-80","v":"2020-01-18"},250,{"$f":"IF(COUNTA('Controlador do Projeto'!$E8,'Controlador do Projeto'!$F8)<>2,\"\",DAYS360('Controlador do Projeto'!$E8,'Controlador do Projeto'!$F8,FALSE))","v":10},{"$f":"TODAY()-90","v":"2020-01-08"},{"$f":"TODAY()-71","v":"2020-01-27"},{"$f":"IFERROR(IF(ControladorDoProjeto[[#This Row],[Trabalho Real (em horas)]]=0,\"\",IF(ABS((ControladorDoProjeto[[#This Row],[Trabalho Real (em horas)]]-ControladorDoProjeto[[#This Row],[Trabalho Estimado (em horas)]])/ControladorDoProjeto[[#This Row],[Trabalho Estimado (em horas)]])>PercentagemSinalizada,1,0)),\"\")","v":0},276,{"$f":"IFERROR(IF(ControladorDoProjeto[[#This Row],[Duração Real (em dias)]]=0,\"\",IF(ABS((ControladorDoProjeto[[#This Row],[Duração Real (em dias)]]-ControladorDoProjeto[[#This Row],[Duração Estimada (em dias)]])/ControladorDoProjeto[[#This Row],[Duração Estimada (em dias)]])>PercentagemSinalizada,1,0)),\"\")","v":1},{"$f":"IF(COUNTA('Controlador do Projeto'!$I8,'Controlador do Projeto'!$J8)<>2,\"\",DAYS360('Controlador do Projeto'!$I8,'Controlador do Projeto'!$J8,FALSE))","v":19}]
[null,"Projeto 5","Categoria 3","Funcionário 2",{"$f":"TODAY()-90","v":"2020-01-08"},{"$f":"TODAY()-50","v":"2020-02-17"},300,{"$f":"IF(COUNTA('Controlador do Projeto'!$E9,'Controlador do Projeto'!$F9)<>2,\"\",DAYS360('Controlador do Projeto'!$E9,'Controlador do Projeto'!$F9,FALSE))","v":39},{"$f":"TODAY()-90","v":"2020-01-08"},{"$f":"TODAY()-44","v":"2020-02-23"},{"$f":"IFERROR(IF(ControladorDoProjeto[[#This Row],[Trabalho Real (em horas)]]=0,\"\",IF(ABS((ControladorDoProjeto[[#This Row],[Trabalho Real (em horas)]]-ControladorDoProjeto[[#This Row],[Trabalho Estimado (em horas)]])/ControladorDoProjeto[[#This Row],[Trabalho Estimado (em horas)]])>PercentagemSinalizada,1,0)),\"\")","v":0},310,{"$f":"IFERROR(IF(ControladorDoProjeto[[#This Row],[Duração Real (em dias)]]=0,\"\",IF(ABS((ControladorDoProjeto[[#This Row],[Duração Real (em dias)]]-ControladorDoProjeto[[#This Row],[Duração Estimada (em dias)]])/ControladorDoProjeto[[#This Row],[Duração Estimada (em dias)]])>PercentagemSinalizada,1,0)),\"\")","v":0},{"$f":"IF(COUNTA('Controlador do Projeto'!$I9,'Controlador do Projeto'!$J9)<>2,\"\",DAYS360('Controlador do Projeto'!$I9,'Controlador do Projeto'!$J9,FALSE))","v":45}]
[null,"Projeto 6","Categoria 4","Funcionário 4",{"$f":"TODAY()-60","v":"2020-02-07"},{"$f":"TODAY()-50","v":"2020-02-17"},500,{"$f":"IF(COUNTA('Controlador do Projeto'!$E10,'Controlador do Projeto'!$F10)<>2,\"\",DAYS360('Controlador do Projeto'!$E10,'Controlador do Projeto'!$F10,FALSE))","v":10},{"$f":"TODAY()-60","v":"2020-02-07"},{"$f":"TODAY()-45","v":"2020-02-22"},{"$f":"IFERROR(IF(ControladorDoProjeto[[#This Row],[Trabalho Real (em horas)]]=0,\"\",IF(ABS((ControladorDoProjeto[[#This Row],[Trabalho Real (em horas)]]-ControladorDoProjeto[[#This Row],[Trabalho Estimado (em horas)]])/ControladorDoProjeto[[#This Row],[Trabalho Estimado (em horas)]])>PercentagemSinalizada,1,0)),\"\")","v":0},510,{"$f":"IFERROR(IF(ControladorDoProjeto[[#This Row],[Duração Real (em dias)]]=0,\"\",IF(ABS((ControladorDoProjeto[[#This Row],[Duração Real (em dias)]]-ControladorDoProjeto[[#This Row],[Duração Estimada (em dias)]])/ControladorDoProjeto[[#This Row],[Duração Estimada (em dias)]])>PercentagemSinalizada,1,0)),\"\")","v":1},{"$f":"IF(COUNTA('Controlador do Projeto'!$I10,'Controlador do Projeto'!$J10)<>2,\"\",DAYS360('Controlador do Projeto'!$I10,'Controlador do Projeto'!$J10,FALSE))","v":15}]
[null,"Projeto 7","Categoria 5","Funcionário 1",{"$f":"TODAY()-44","v":"2020-02-23"},{"$f":"TODAY()-20","v":"2020-03-18"},750,{"$f":"IF(COUNTA('Controlador do Projeto'!$E11,'Controlador do Projeto'!$F11)<>2,\"\",DAYS360('Controlador do Projeto'!$E11,'Controlador do Projeto'!$F11,FALSE))","v":25},{"$f":"TODAY()-44","v":"2020-02-23"},{"$f":"TODAY()-15","v":"2020-03-23"},{"$f":"IFERROR(IF(ControladorDoProjeto[[#This Row],[Trabalho Real (em horas)]]=0,\"\",IF(ABS((ControladorDoProjeto[[#This Row],[Trabalho Real (em horas)]]-ControladorDoProjeto[[#This Row],[Trabalho Estimado (em horas)]])/ControladorDoProjeto[[#This Row],[Trabalho Estimado (em horas)]])>PercentagemSinalizada,1,0)),\"\")","v":0},790,{"$f":"IFERROR(IF(ControladorDoProjeto[[#This Row],[Duração Real (em dias)]]=0,\"\",IF(ABS((ControladorDoProjeto[[#This Row],[Duração Real (em dias)]]-ControladorDoProjeto[[#This Row],[Duração Estimada (em dias)]])/ControladorDoProjeto[[#This Row],[Duração Estimada (em dias)]])>PercentagemSinalizada,1,0)),\"\")","v":0},{"$f":"IF(COUNTA('Controlador do Projeto'!$I11,'Controlador do Projeto'!$J11)<>2,\"\",DAYS360('Controlador do Projeto'!$I11,'Controlador do Projeto'!$J11,FALSE))","v":30}]
[null,"Projeto 8","Categoria 2","Funcionário 1",{"$f":"TODAY()-39","v":"2020-02-28"},{"$f":"TODAY()","v":"2020-04-07"},450,{"$f":"IF(COUNTA('Controlador do Projeto'!$E12,'Controlador do Projeto'!$F12)<>2,\"\",DAYS360('Controlador do Projeto'!$E12,'Controlador do Projeto'!$F12,FALSE))","v":39},{"$f":"TODAY()-45","v":"2020-02-22"},{"$f":"TODAY()-5","v":"2020-04-02"},{"$f":"IFERROR(IF(ControladorDoProjeto[[#This Row],[Trabalho Real (em horas)]]=0,\"\",IF(ABS((ControladorDoProjeto[[#This Row],[Trabalho Real (em horas)]]-ControladorDoProjeto[[#This Row],[Trabalho Estimado (em horas)]])/ControladorDoProjeto[[#This Row],[Trabalho Estimado (em horas)]])>PercentagemSinalizada,1,0)),\"\")","v":0},430,{"$f":"IFERROR(IF(ControladorDoProjeto[[#This Row],[Duração Real (em dias)]]=0,\"\",IF(ABS((ControladorDoProjeto[[#This Row],[Duração Real (em dias)]]-ControladorDoProjeto[[#This Row],[Duração Estimada (em dias)]])/ControladorDoProjeto[[#This Row],[Duração Estimada (em dias)]])>PercentagemSinalizada,1,0)),\"\")","v":0},{"$f":"IF(COUNTA('Controlador do Projeto'!$I12,'Controlador do Projeto'!$J12)<>2,\"\",DAYS360('Controlador do Projeto'!$I12,'Controlador do Projeto'!$J12,FALSE))","v":40}]
[null,"projeto 9","Categoria 4","Funcionário 1","2016-02-05","2016-06-09",250,{"$f":"IF(COUNTA('Controlador do Projeto'!$E13,'Controlador do Projeto'!$F13)<>2,\"\",DAYS360('Controlador do Projeto'!$E13,'Controlador do Projeto'!$F13,FALSE))","v":124},"2016-03-05","2016-05-05",{"$f":"IFERROR(IF(ControladorDoProjeto[[#This Row],[Trabalho Real (em horas)]]=0,\"\",IF(ABS((ControladorDoProjeto[[#This Row],[Trabalho Real (em horas)]]-ControladorDoProjeto[[#This Row],[Trabalho Estimado (em horas)]])/ControladorDoProjeto[[#This Row],[Trabalho Estimado (em horas)]])>PercentagemSinalizada,1,0)),\"\")","v":0},200,{"$f":"IFERROR(IF(ControladorDoProjeto[[#This Row],[Duração Real (em dias)]]=0,\"\",IF(ABS((ControladorDoProjeto[[#This Row],[Duração Real (em dias)]]-ControladorDoProjeto[[#This Row],[Duração Estimada (em dias)]])/ControladorDoProjeto[[#This Row],[Duração Estimada (em dias)]])>PercentagemSinalizada,1,0)),\"\")","v":1},{"$f":"IF(COUNTA('Controlador do Projeto'!$I13,'Controlador do Projeto'!$J13)<>2,\"\",DAYS360('Controlador do Projeto'!$I13,'Controlador do Projeto'!$J13,FALSE))","v":60}]

{"sheet":"Configuração","index":1,"n_rows":10,"n_cols":3,"rows_kept":10}
[null,"Configuração"]
[]
[]
[null,"Nome da Categoria","Nome do Funcionário"]
[null,"Categoria 1","Funcionário 1"]
[null,"Categoria 2","Funcionário 2"]
[null,"Categoria 3","Funcionário 3"]
[null,"Categoria 4","Funcionário 4"]
[null,"Categoria 5","Funcionário 5"]
[null,"Categoria 6","Funcionário 6"]